[Event "*** Titled Tuesday Blitz"]
[Site "Chess.com"]
[Date "2020.11.24"]
[Round "6"]
[White "manipun1"]
[Black "mikheeva86"]
[Result "1-0"]
[WhiteElo "2246"]
[BlackElo "1975"]
[TimeControl "180+1"]
[EndTime "11:21:40 PST"]
[Termination "manipun1 won on time"]

1. e4 {[%clk 0:03:00.9]} 1... e6 {[%clk 0:02:58]} 2. Nf3 {[%clk 0:03:00.2]} 2...
d5 {[%clk 0:02:56.7]} 3. Nc3 {[%clk 0:03:00.5]} 3... dxe4 {[%clk 0:02:49.8]} 4.
Nxe4 {[%clk 0:02:59.8]} 4... Nf6 {[%clk 0:02:49.6]} 5. Nxf6+ {[%clk 0:02:59]}
5... Qxf6 {[%clk 0:02:49]} 6. d4 {[%clk 0:02:59.9]} 6... Bd6 {[%clk 0:02:43.9]}
7. Bg5 {[%clk 0:02:57.8]} 7... Qf5 {[%clk 0:02:29.1]} 8. Bd3 {[%clk 0:02:54.1]}
8... Qa5+ {[%clk 0:02:28]} 9. c3 {[%clk 0:02:52.4]} 9... Bd7 {[%clk 0:01:56.3]}
10. O-O {[%clk 0:02:50.9]} 10... Bc6 {[%clk 0:01:48.7]} 11. Bd2 {[%clk
0:02:45.7]} 11... Nd7 {[%clk 0:01:40.7]} 12. c4 {[%clk 0:02:37.1]} 12... Bb4
{[%clk 0:01:37.1]} 13. d5 {[%clk 0:02:18.2]} 13... exd5 {[%clk 0:01:18.7]} 14.
Re1+ {[%clk 0:02:16.6]} 14... Kf8 {[%clk 0:01:18.3]} 15. Bxb4+ {[%clk
0:02:06.5]} 15... Qxb4 {[%clk 0:01:15.2]} 16. cxd5 {[%clk 0:01:58.3]} 16... Bxd5
{[%clk 0:01:14.3]} 17. Bf5 {[%clk 0:01:56.2]} 17... Nb6 {[%clk 0:01:06]} 18. Ne5
{[%clk 0:01:37.7]} 18... f6 {[%clk 0:00:56.1]} 19. Nd7+ {[%clk 0:01:33.8]} 19...
Nxd7 {[%clk 0:00:55.4]} 20. Qxd5 {[%clk 0:01:33.6]} 20... Nb6 {[%clk 0:00:51]}
21. Qxb7 {[%clk 0:01:25.5]} 21... g6 {[%clk 0:00:35.8]} 22. Be6 {[%clk 0:01:18]}
22... Qe7 {[%clk 0:00:15.1]} 23. Bb3 {[%clk 0:01:14.5]} 23... Qd7 {[%clk
0:00:11.4]} 24. Rad1 {[%clk 0:01:12.9]} 24... Qc8 {[%clk 0:00:10.6]} 25. Qc6
{[%clk 0:01:10.1]} 25... Kg7 {[%clk 0:00:08.9]} 26. Re7+ {[%clk 0:01:07.9]}
26... Kh6 {[%clk 0:00:08.6]} 27. Qxf6 {[%clk 0:01:05.8]} 27... Qg4 {[%clk
0:00:07.5]} 28. h3 {[%clk 0:01:01.6]} 28... Qg5 {[%clk 0:00:06.1]} 29. Qg7+
{[%clk 0:00:56.6]} 29... Kh5 {[%clk 0:00:05.4]} 30. Re5 {[%clk 0:00:55.8]} 1-0

[Event "*** Titled Tuesday Blitz"]
[Site "Chess.com"]
[Date "2020.11.24"]
[Round "6"]
[White "beto-betun"]
[Black "Klavdia_Nik"]
[Result "1-0"]
[WhiteElo "2194"]
[BlackElo "2070"]
[TimeControl "180+1"]
[EndTime "11:21:40 PST"]
[Termination "beto-betun won by resignation"]

1. d4 {[%clk 0:03:00.9]} 1... Nf6 {[%clk 0:02:59.7]} 2. Nf3 {[%clk 0:03:01.1]}
2... c5 {[%clk 0:03:00]} 3. c4 {[%clk 0:03:00.5]} 3... g6 {[%clk 0:02:51.3]} 4.
g3 {[%clk 0:02:54.1]} 4... b6 {[%clk 0:02:50.5]} 5. Bg2 {[%clk 0:02:52.6]} 5...
Bb7 {[%clk 0:02:51]} 6. O-O {[%clk 0:02:50.5]} 6... Bg7 {[%clk 0:02:51.1]} 7. d5
{[%clk 0:02:48.9]} 7... b5 {[%clk 0:02:44.1]} 8. Nc3 {[%clk 0:02:38.3]} 8...
bxc4 {[%clk 0:02:39.9]} 9. e4 {[%clk 0:02:38.4]} 9... d6 {[%clk 0:02:39.7]} 10.
e5 {[%clk 0:02:36.9]} 10... Ng4 {[%clk 0:02:28.6]} 11. e6 {[%clk 0:02:29.2]}
11... f5 {[%clk 0:02:17.9]} 12. Ng5 {[%clk 0:02:22.5]} 12... O-O {[%clk
0:02:17.5]} 13. Nf7 {[%clk 0:02:21]} 13... Qa5 {[%clk 0:02:12.2]} 14. h3 {[%clk
0:02:16.6]} 14... Ne5 {[%clk 0:02:11.9]} 15. Nh6+ {[%clk 0:02:14.5]} 15... Kh8
{[%clk 0:01:53.2]} 16. Bg5 {[%clk 0:02:06.6]} 16... Bf6 {[%clk 0:01:37.8]} 17.
Bxf6+ {[%clk 0:02:01.7]} 17... Rxf6 {[%clk 0:01:35.5]} 18. Qd2 {[%clk
0:02:02.2]} 18... Kg7 {[%clk 0:01:28.1]} 19. g4 {[%clk 0:01:53.7]} 19... fxg4
{[%clk 0:01:22.3]} 20. hxg4 {[%clk 0:01:52.1]} 20... Na6 {[%clk 0:01:03.8]} 21.
f4 {[%clk 0:01:44.4]} 21... Nd3 {[%clk 0:01:02.7]} 22. g5 {[%clk 0:01:41]} 22...
Rff8 {[%clk 0:00:58.7]} 23. f5 {[%clk 0:01:38.6]} 23... Nab4 {[%clk 0:00:31.2]}
24. f6+ {[%clk 0:01:37.9]} 24... exf6 {[%clk 0:00:28.4]} 25. gxf6+ {[%clk
0:01:38.5]} 25... Rxf6 {[%clk 0:00:11.7]} 26. Rxf6 {[%clk 0:01:39]} 26... Kxf6
{[%clk 0:00:12]} 27. Rf1+ {[%clk 0:01:37.5]} 27... Kg7 {[%clk 0:00:12.4]} 28.
Rf7+ {[%clk 0:01:34.7]} 28... Kh8 {[%clk 0:00:12.2]} 29. Be4 {[%clk 0:01:28.4]}
29... Nxd5 {[%clk 0:00:08.8]} 30. Bxd5 {[%clk 0:01:19.8]} 30... Bxd5 {[%clk
0:00:08.1]} 31. Qg5 {[%clk 0:00:59.9]} 31... Qd8 {[%clk 0:00:04]} 32. e7 {[%clk
0:00:57.6]} 1-0

[Event "*** Titled Tuesday Blitz"]
[Site "Chess.com"]
[Date "2020.11.24"]
[Round "6"]
[White "svilson23"]
[Black "enriquebutti"]
[Result "1-0"]
[WhiteElo "2244"]
[BlackElo "1961"]
[TimeControl "180+1"]
[EndTime "11:21:42 PST"]
[Termination "svilson23 won by resignation"]

1. e4 {[%clk 0:00:14.4]} 1... c5 {[%clk 0:02:58]} 2. Nf3 {[%clk 0:00:14.5]} 2...
d6 {[%clk 0:02:54.4]} 3. Bb5+ {[%clk 0:00:15]} 3... Bd7 {[%clk 0:02:53.9]} 4.
Bxd7+ {[%clk 0:00:15.2]} 4... Qxd7 {[%clk 0:02:54.2]} 5. c4 {[%clk 0:00:15.4]}
5... Nc6 {[%clk 0:02:52.8]} 6. Nc3 {[%clk 0:00:16.3]} 6... Nf6 {[%clk
0:02:51.8]} 7. d4 {[%clk 0:00:16.7]} 7... cxd4 {[%clk 0:02:51.5]} 8. Nxd4 {[%clk
0:00:17.6]} 8... e6 {[%clk 0:02:51.2]} 9. O-O {[%clk 0:00:16.2]} 9... Be7 {[%clk
0:02:50.7]} 10. f3 {[%clk 0:00:16.6]} 10... O-O {[%clk 0:02:49.9]} 11. Be3
{[%clk 0:00:17.3]} 11... a6 {[%clk 0:02:49.4]} 12. Kh1 {[%clk 0:00:17.5]} 12...
Rfc8 {[%clk 0:02:48.5]} 13. Qd2 {[%clk 0:00:16.2]} 13... Nxd4 {[%clk 0:02:43.6]}
14. Qxd4 {[%clk 0:00:15.6]} 14... Qc6 {[%clk 0:02:40.4]} 15. b3 {[%clk
0:00:14.5]} 15... b5 {[%clk 0:02:40]} 16. Rac1 {[%clk 0:00:11.2]} 16... bxc4
{[%clk 0:02:39.1]} 17. bxc4 {[%clk 0:00:11.4]} 17... Qxc4 {[%clk 0:02:38.5]} 18.
Nd5 {[%clk 0:00:11.6]} 18... Qxd4 {[%clk 0:02:38]} 19. Nxe7+ {[%clk 0:00:11]}
19... Kf8 {[%clk 0:02:37.7]} 20. Bxd4 {[%clk 0:00:10.6]} 20... Kxe7 {[%clk
0:02:35]} 21. g4 {[%clk 0:00:10]} 21... e5 {[%clk 0:02:32.6]} 22. Be3 {[%clk
0:00:07.9]} 22... d5 {[%clk 0:02:31.2]} 23. g5 {[%clk 0:00:07.3]} 23... Nh5
{[%clk 0:02:23.6]} 24. exd5 {[%clk 0:00:07.4]} 24... Kd6 {[%clk 0:02:23.8]} 25.
Rfd1 {[%clk 0:00:06]} 25... Rxc1 {[%clk 0:02:22.6]} 26. Bxc1 {[%clk 0:00:06.9]}
26... Nf4 {[%clk 0:02:20.4]} 27. Bxf4 {[%clk 0:00:05.3]} 27... exf4 {[%clk
0:02:20.1]} 28. Rd4 {[%clk 0:00:05.8]} 28... Ke5 {[%clk 0:02:19.8]} 29. Re4+
{[%clk 0:00:05.5]} 29... Kxd5 {[%clk 0:02:19.6]} 30. Rxf4 {[%clk 0:00:05.4]}
30... Ra7 {[%clk 0:02:19.3]} 31. Kg2 {[%clk 0:00:05.6]} 31... Ke5 {[%clk
0:02:19]} 32. Kg3 {[%clk 0:00:05.6]} 32... Rd7 {[%clk 0:02:18.4]} 33. Ra4 {[%clk
0:00:06]} 33... Rd6 {[%clk 0:02:17.8]} 34. Ra5+ {[%clk 0:00:06.3]} 34... Kd4
{[%clk 0:02:16.3]} 35. Kf4 {[%clk 0:00:06.5]} 35... Kc3 {[%clk 0:02:11.6]} 36.
h4 {[%clk 0:00:06.8]} 36... Rd4+ {[%clk 0:02:00.4]} 37. Kf5 {[%clk 0:00:07.1]}
37... Rxh4 {[%clk 0:01:59.7]} 38. Rxa6 {[%clk 0:00:08]} 38... Kd3 {[%clk
0:01:50]} 39. f4 {[%clk 0:00:07.5]} 39... Ke3 {[%clk 0:01:49]} 40. Ra4 {[%clk
0:00:07.9]} 40... Rh2 {[%clk 0:01:47.6]} 41. Re4+ {[%clk 0:00:08.5]} 41... Kf3
{[%clk 0:01:47.2]} 42. Re7 {[%clk 0:00:08.7]} 42... Rh4 {[%clk 0:01:45.7]} 43.
Rxf7 {[%clk 0:00:08.6]} 43... Rxf4+ {[%clk 0:01:45.1]} 44. Ke6 {[%clk
0:00:09.2]} 44... Rxf7 {[%clk 0:01:43.2]} 45. Kxf7 {[%clk 0:00:09.2]} 45... g6
{[%clk 0:01:39.4]} 46. Kg7 {[%clk 0:00:08.7]} 46... Kg4 {[%clk 0:01:38.9]} 47.
Kh6 {[%clk 0:00:09.3]} 47... Kh4 {[%clk 0:01:38.2]} 48. a4 {[%clk 0:00:10.2]}
1-0

[Event "*** Titled Tuesday Blitz"]
[Site "Chess.com"]
[Date "2020.11.24"]
[Round "6"]
[White "AlexeiShirov"]
[Black "esapunov"]
[Result "1-0"]
[WhiteElo "2847"]
[BlackElo "2804"]
[TimeControl "180+1"]
[EndTime "11:21:45 PST"]
[Termination "AlexeiShirov won by resignation"]

1. e4 {[%clk 0:03:00.9]} 1... c5 {[%clk 0:02:59.6]} 2. Nf3 {[%clk 0:03:00.9]}
2... d6 {[%clk 0:03:00]} 3. d4 {[%clk 0:03:01.1]} 3... cxd4 {[%clk 0:03:00.2]}
4. Nxd4 {[%clk 0:03:01]} 4... Nf6 {[%clk 0:03:00.8]} 5. Nc3 {[%clk 0:03:01.1]}
5... Nc6 {[%clk 0:03:01.5]} 6. Bg5 {[%clk 0:03:00.1]} 6... e6 {[%clk 0:03:01.5]}
7. Qd2 {[%clk 0:03:00]} 7... a6 {[%clk 0:03:01.9]} 8. O-O-O {[%clk 0:02:59.6]}
8... h6 {[%clk 0:03:02.5]} 9. Be3 {[%clk 0:02:58.3]} 9... Nxd4 {[%clk
0:03:01.6]} 10. Qxd4 {[%clk 0:02:53]} 10... Qc7 {[%clk 0:02:48.8]} 11. f4 {[%clk
0:02:48.7]} 11... Be7 {[%clk 0:02:39.4]} 12. Be2 {[%clk 0:02:42.1]} 12... O-O
{[%clk 0:02:26.3]} 13. g4 {[%clk 0:02:41.2]} 13... e5 {[%clk 0:02:26]} 14. Qd3
{[%clk 0:02:41.1]} 14... exf4 {[%clk 0:01:35.8]} 15. Bxf4 {[%clk 0:02:41]} 15...
Be6 {[%clk 0:01:35.7]} 16. Rhg1 {[%clk 0:02:35.5]} 16... g5 {[%clk 0:01:30.4]}
17. Bxd6 {[%clk 0:02:34]} 17... Bxd6 {[%clk 0:01:29.4]} 18. Qxd6 {[%clk
0:02:33.9]} 18... Qxd6 {[%clk 0:01:27.5]} 19. Rxd6 {[%clk 0:02:33.5]} 19... Rfd8
{[%clk 0:01:24.5]} 20. Rb6 {[%clk 0:02:31.9]} 20... Rab8 {[%clk 0:01:22.2]} 21.
h3 {[%clk 0:02:27.4]} 21... Nd7 {[%clk 0:01:21]} 22. Rd6 {[%clk 0:02:26.6]}
22... Ne5 {[%clk 0:01:20.9]} 23. Rgd1 {[%clk 0:02:26.3]} 23... Rxd6 {[%clk
0:01:17.6]} 24. Rxd6 {[%clk 0:02:25.9]} 24... Kf8 {[%clk 0:01:18.1]} 25. Nd5
{[%clk 0:02:13.7]} 25... h5 {[%clk 0:00:44]} 26. gxh5 {[%clk 0:02:09.3]} 26...
Bxh3 {[%clk 0:00:43.5]} 27. h6 {[%clk 0:02:06.4]} 27... g4 {[%clk 0:00:42]} 28.
Nf4 {[%clk 0:02:01]} 28... Ke7 {[%clk 0:00:33.5]} 29. Rb6 {[%clk 0:01:58.3]}
29... Nd7 {[%clk 0:00:33.4]} 30. Rb3 {[%clk 0:01:53.4]} 30... b5 {[%clk
0:00:30.6]} 31. Nxh3 {[%clk 0:01:51.4]} 31... gxh3 {[%clk 0:00:30.8]} 32. Rxh3
{[%clk 0:01:50.9]} 32... Rh8 {[%clk 0:00:31.5]} 33. Bg4 {[%clk 0:01:47.5]} 33...
Ne5 {[%clk 0:00:31.5]} 34. Bf5 {[%clk 0:01:47.4]} 34... b4 {[%clk 0:00:31.4]}
35. h7 {[%clk 0:01:46.8]} 35... a5 {[%clk 0:00:30.4]} 36. a3 {[%clk 0:01:46.2]}
36... Ng6 {[%clk 0:00:29.1]} 37. axb4 {[%clk 0:01:38.5]} 37... axb4 {[%clk
0:00:29.3]} 38. Kd2 {[%clk 0:01:37.8]} 38... Kf6 {[%clk 0:00:27.7]} 39. Ke3
{[%clk 0:01:32.2]} 39... Ne5 {[%clk 0:00:26]} 40. Kd4 {[%clk 0:01:24.1]} 40...
Rd8+ {[%clk 0:00:24.9]} 41. Kc5 {[%clk 0:01:23.3]} 41... Kg7 {[%clk 0:00:23.5]}
42. Kxb4 {[%clk 0:01:20.7]} 42... Rb8+ {[%clk 0:00:23.5]} 43. Kc3 {[%clk
0:01:19.9]} 43... Nc6 {[%clk 0:00:20.9]} 44. Rg3+ {[%clk 0:01:16.9]} 44... Kh8
{[%clk 0:00:20.2]} 45. b4 {[%clk 0:01:16]} 45... Na7 {[%clk 0:00:18.8]} 46. Kc4
{[%clk 0:01:13.6]} 1-0

[Event "*** Titled Tuesday Blitz"]
[Site "Chess.com"]
[Date "2020.11.24"]
[Round "6"]
[White "vugarrasulov"]
[Black "Rodalquilar"]
[Result "1-0"]
[WhiteElo "2875"]
[BlackElo "2664"]
[TimeControl "180+1"]
[EndTime "11:21:48 PST"]
[Termination "vugarrasulov won on time"]

1. d4 {[%clk 0:03:00.9]} 1... d5 {[%clk 0:02:59.9]} 2. c4 {[%clk 0:02:59.7]}
2... e6 {[%clk 0:03:00.3]} 3. Nf3 {[%clk 0:02:59.3]} 3... Nf6 {[%clk 0:03:00.3]}
4. Nc3 {[%clk 0:02:59.7]} 4... a6 {[%clk 0:03:00.8]} 5. c5 {[%clk 0:02:58.5]}
5... b6 {[%clk 0:03:00.3]} 6. cxb6 {[%clk 0:02:59.4]} 6... cxb6 {[%clk
0:03:00.7]} 7. Bg5 {[%clk 0:02:59.9]} 7... Be7 {[%clk 0:02:56.9]} 8. e3 {[%clk
0:02:59.7]} 8... O-O {[%clk 0:02:56.9]} 9. Bd3 {[%clk 0:02:59.3]} 9... Bb7
{[%clk 0:02:56.4]} 10. Rc1 {[%clk 0:02:57]} 10... Nbd7 {[%clk 0:02:56.4]} 11.
O-O {[%clk 0:02:56.7]} 11... Rc8 {[%clk 0:02:43.8]} 12. Qb3 {[%clk 0:02:50.2]}
12... b5 {[%clk 0:02:19]} 13. Bxf6 {[%clk 0:02:45.5]} 13... Nxf6 {[%clk
0:02:18.7]} 14. Ne5 {[%clk 0:02:45.4]} 14... Qa5 {[%clk 0:02:00.2]} 15. Rc2
{[%clk 0:02:36.8]} 15... Rc7 {[%clk 0:01:53.6]} 16. Rfc1 {[%clk 0:02:35.2]}
16... Rfc8 {[%clk 0:01:53.7]} 17. a3 {[%clk 0:02:30.3]} 17... Ne8 {[%clk
0:01:53]} 18. a4 {[%clk 0:02:05.2]} 18... Nd6 {[%clk 0:01:35.3]} 19. axb5 {[%clk
0:02:03.8]} 19... axb5 {[%clk 0:01:31.9]} 20. h3 {[%clk 0:01:54.7]} 20... Ba6
{[%clk 0:01:11.8]} 21. Ne2 {[%clk 0:01:25.7]} 21... Rxc2 {[%clk 0:00:59.7]} 22.
Rxc2 {[%clk 0:01:26.6]} 22... Qe1+ {[%clk 0:00:52.9]} 23. Kh2 {[%clk 0:01:26.4]}
23... Qxf2 {[%clk 0:00:53.2]} 24. Rxc8+ {[%clk 0:01:12.9]} 24... Bxc8 {[%clk
0:00:52.6]} 25. Qc3 {[%clk 0:01:00.5]} 25... b4 {[%clk 0:00:41.4]} 26. Qc1
{[%clk 0:00:52]} 26... h5 {[%clk 0:00:37.9]} 27. Nf4 {[%clk 0:00:47.6]} 27... h4
{[%clk 0:00:30.3]} 28. Ne2 {[%clk 0:00:40.9]} 28... b3 {[%clk 0:00:07.2]} 29.
Ng4 {[%clk 0:00:39.6]} 1-0

[Event "*** Titled Tuesday Blitz"]
[Site "Chess.com"]
[Date "2020.11.24"]
[Round "6"]
[White "SchieberSpieler"]
[Black "NotFischer"]
[Result "1-0"]
[WhiteElo "2335"]
[BlackElo "2139"]
[TimeControl "180+1"]
[EndTime "11:21:48 PST"]
[Termination "SchieberSpieler won on time"]

1. Nf3 {[%clk 0:03:00.9]} 1... Nf6 {[%clk 0:02:59.7]} 2. c4 {[%clk 0:03:01.3]}
2... d6 {[%clk 0:02:59.8]} 3. d4 {[%clk 0:03:01.3]} 3... g6 {[%clk 0:02:59.6]}
4. g3 {[%clk 0:03:01.8]} 4... Bg7 {[%clk 0:03:00.1]} 5. Bg2 {[%clk 0:03:02.7]}
5... O-O {[%clk 0:03:00.9]} 6. O-O {[%clk 0:03:03.6]} 6... c6 {[%clk 0:03:01.4]}
7. Nc3 {[%clk 0:03:03]} 7... Nbd7 {[%clk 0:03:01.7]} 8. e4 {[%clk 0:02:57]} 8...
e5 {[%clk 0:03:01.3]} 9. Be3 {[%clk 0:02:57.1]} 9... Re8 {[%clk 0:03:01.2]} 10.
h3 {[%clk 0:02:51.1]} 10... exd4 {[%clk 0:02:57.1]} 11. Nxd4 {[%clk 0:02:52]}
11... Nc5 {[%clk 0:02:57.4]} 12. Qc2 {[%clk 0:02:52.1]} 12... a5 {[%clk
0:02:57.7]} 13. Rad1 {[%clk 0:02:51.3]} 13... Qc7 {[%clk 0:02:46.7]} 14. Rd2
{[%clk 0:02:41.4]} 14... h5 {[%clk 0:02:43.5]} 15. Rfd1 {[%clk 0:02:38.6]} 15...
Nfd7 {[%clk 0:02:23.5]} 16. b3 {[%clk 0:02:34.4]} 16... Nb6 {[%clk 0:02:20.3]}
17. Nde2 {[%clk 0:02:29.2]} 17... Bf8 {[%clk 0:02:20.1]} 18. Bf4 {[%clk
0:02:22.4]} 18... Rd8 {[%clk 0:01:42.9]} 19. Qb2 {[%clk 0:02:10.9]} 19... Ne6
{[%clk 0:01:35.1]} 20. Be3 {[%clk 0:02:10.3]} 20... Bd7 {[%clk 0:01:02.1]} 21.
f4 {[%clk 0:02:09.3]} 21... Be8 {[%clk 0:00:49.9]} 22. g4 {[%clk 0:02:00.4]}
22... hxg4 {[%clk 0:00:48]} 23. hxg4 {[%clk 0:02:01.3]} 23... Bg7 {[%clk
0:00:40.3]} 24. g5 {[%clk 0:01:47.5]} 24... a4 {[%clk 0:00:32.1]} 25. f5 {[%clk
0:01:44.5]} 25... Nc5 {[%clk 0:00:15.6]} 26. Bf4 {[%clk 0:01:22.5]} 26... axb3
{[%clk 0:00:08.8]} 27. axb3 {[%clk 0:01:22.4]} 27... Be5 {[%clk 0:00:05.3]} 28.
Be3 {[%clk 0:01:11.4]} 28... Rab8 {[%clk 0:00:03.7]} 29. Qc2 {[%clk 0:01:08.1]}
29... Ra8 {[%clk 0:00:03.6]} 30. Nf4 {[%clk 0:01:02.2]} 30... Na6 {[%clk
0:00:03.3]} 31. Nd3 {[%clk 0:01:01.5]} 31... Bxc3 {[%clk 0:00:02.5]} 32. Qxc3
{[%clk 0:01:01.4]} 32... c5 {[%clk 0:00:03.1]} 33. Kf2 {[%clk 0:00:58.7]} 33...
Bc6 {[%clk 0:00:03.2]} 34. Rh1 {[%clk 0:00:58.5]} 1-0

[Event "*** Titled Tuesday Blitz"]
[Site "Chess.com"]
[Date "2020.11.24"]
[Round "6"]
[White "joppie2"]
[Black "frederiksvane"]
[Result "1-0"]
[WhiteElo "2956"]
[BlackElo "2725"]
[TimeControl "180+1"]
[EndTime "11:21:51 PST"]
[Termination "joppie2 won by checkmate"]

1. b3 {[%clk 0:03:00.9]} 1... c5 {[%clk 0:02:57.3]} 2. Bb2 {[%clk 0:03:01.8]}
2... Nc6 {[%clk 0:02:57.4]} 3. c4 {[%clk 0:02:58.8]} 3... Nf6 {[%clk 0:02:56.4]}
4. e3 {[%clk 0:02:59.3]} 4... g6 {[%clk 0:02:56.4]} 5. Nf3 {[%clk 0:02:58.4]}
5... Bg7 {[%clk 0:02:56.6]} 6. Be2 {[%clk 0:02:58.4]} 6... O-O {[%clk
0:02:57.2]} 7. O-O {[%clk 0:02:59]} 7... d5 {[%clk 0:02:53.5]} 8. cxd5 {[%clk
0:02:59.4]} 8... Qxd5 {[%clk 0:02:54.4]} 9. d4 {[%clk 0:02:50.3]} 9... cxd4
{[%clk 0:02:51.5]} 10. Nxd4 {[%clk 0:02:51.2]} 10... Nxd4 {[%clk 0:02:49.3]} 11.
Bxd4 {[%clk 0:02:52.1]} 11... Bf5 {[%clk 0:02:23.9]} 12. Bf3 {[%clk 0:02:50.8]}
12... Qd7 {[%clk 0:02:17]} 13. Nd2 {[%clk 0:02:47.9]} 13... Rfd8 {[%clk
0:02:10.5]} 14. Nc4 {[%clk 0:02:47.7]} 14... Ne4 {[%clk 0:01:29.1]} 15. Bxg7
{[%clk 0:02:22.2]} 15... Kxg7 {[%clk 0:01:30]} 16. Qe2 {[%clk 0:02:09]} 16... f6
{[%clk 0:01:11.7]} 17. Rac1 {[%clk 0:01:56.6]} 17... Rac8 {[%clk 0:00:55.9]} 18.
g4 {[%clk 0:01:51]} 18... Ng3 {[%clk 0:00:33]} 19. hxg3 {[%clk 0:01:47.6]} 19...
Bd3 {[%clk 0:00:33.3]} 20. Qb2 {[%clk 0:01:16.9]} 20... Bxf1 {[%clk 0:00:31.8]}
21. Rxf1 {[%clk 0:01:17.8]} 21... b5 {[%clk 0:00:32.1]} 22. Na5 {[%clk
0:01:18.3]} 22... Qd2 {[%clk 0:00:31.9]} 23. Qxd2 {[%clk 0:01:14.1]} 23... Rxd2
{[%clk 0:00:32.8]} 24. Nc6 {[%clk 0:01:15]} 24... Rxa2 {[%clk 0:00:25.2]} 25. b4
{[%clk 0:01:14.1]} 25... Kf8 {[%clk 0:00:19.9]} 26. Rd1 {[%clk 0:01:12.5]} 26...
Rc2 {[%clk 0:00:20.3]} 27. Nxa7 {[%clk 0:01:09.5]} 27... R8c4 {[%clk 0:00:16.8]}
28. Rd8+ {[%clk 0:01:05.7]} 28... Kg7 {[%clk 0:00:16.4]} 29. Rd7 {[%clk
0:01:05.7]} 29... Kf8 {[%clk 0:00:14.9]} 30. Nxb5 {[%clk 0:00:58.8]} 30... Rxb4
{[%clk 0:00:15.2]} 31. Nd4 {[%clk 0:00:59.7]} 31... Rc1+ {[%clk 0:00:05.4]} 32.
Kg2 {[%clk 0:00:59.7]} 32... Rbb1 {[%clk 0:00:06.3]} 33. Bd5 {[%clk 0:00:59.2]}
33... Ke8 {[%clk 0:00:05.7]} 34. Ra7 {[%clk 0:00:58.5]} 34... Rc5 {[%clk
0:00:06.1]} 35. Ne6 {[%clk 0:00:57]} 35... Rc2 {[%clk 0:00:03.2]} 36. Ra8+
{[%clk 0:00:56.5]} 36... Kd7 {[%clk 0:00:02.7]} 37. Rd8# {[%clk 0:00:56.6]} 1-0

[Event "*** Titled Tuesday Blitz"]
[Site "Chess.com"]
[Date "2020.11.24"]
[Round "6"]
[White "Teidi96"]
[Black "DarZay"]
[Result "0-1"]
[WhiteElo "2281"]
[BlackElo "2106"]
[TimeControl "180+1"]
[EndTime "11:21:52 PST"]
[Termination "DarZay won by resignation"]

1. e4 {[%clk 0:03:00.9]} 1... c5 {[%clk 0:02:58.9]} 2. Nf3 {[%clk 0:03:01]} 2...
d6 {[%clk 0:02:58.2]} 3. d4 {[%clk 0:03:01]} 3... cxd4 {[%clk 0:02:57.2]} 4.
Nxd4 {[%clk 0:03:01.9]} 4... Nf6 {[%clk 0:02:56.9]} 5. Nc3 {[%clk 0:03:02.6]}
5... Nc6 {[%clk 0:02:56.7]} 6. Bg5 {[%clk 0:03:02]} 6... Bd7 {[%clk 0:02:53.4]}
7. Qd2 {[%clk 0:03:01.5]} 7... e5 {[%clk 0:02:45.2]} 8. Ndb5 {[%clk 0:02:51.5]}
8... h6 {[%clk 0:02:35.8]} 9. Bxf6 {[%clk 0:02:51.5]} 9... gxf6 {[%clk
0:02:33.9]} 10. Nd5 {[%clk 0:02:48.8]} 10... Rc8 {[%clk 0:02:30.4]} 11. O-O-O
{[%clk 0:02:21.2]} 11... a6 {[%clk 0:02:29.5]} 12. Nbc3 {[%clk 0:02:07.6]} 12...
Be6 {[%clk 0:02:14.3]} 13. Kb1 {[%clk 0:02:05]} 13... Bg7 {[%clk 0:02:09.9]} 14.
f4 {[%clk 0:01:58.3]} 14... O-O {[%clk 0:02:05.3]} 15. f5 {[%clk 0:01:58.4]}
15... Bxd5 {[%clk 0:02:05.4]} 16. Nxd5 {[%clk 0:01:59.3]} 16... Ne7 {[%clk
0:01:57.1]} 17. Nxe7+ {[%clk 0:01:49]} 17... Qxe7 {[%clk 0:01:57.3]} 18. Qxd6
{[%clk 0:01:49.7]} 18... Rfd8 {[%clk 0:01:54.5]} 19. Qxd8+ {[%clk 0:01:46.5]}
19... Rxd8 {[%clk 0:01:54.1]} 20. Bd3 {[%clk 0:01:44.3]} 20... Qc5 {[%clk
0:01:51.1]} 21. Rhf1 {[%clk 0:01:40.9]} 21... b5 {[%clk 0:01:47.7]} 22. Rf3
{[%clk 0:01:35]} 22... Kh7 {[%clk 0:01:45.9]} 23. Rdf1 {[%clk 0:01:34.5]} 23...
Qd4 {[%clk 0:01:42.9]} 24. a3 {[%clk 0:01:26.8]} 24... Rb8 {[%clk 0:01:39.2]}
25. c3 {[%clk 0:01:16.5]} 25... Qd6 {[%clk 0:01:34.8]} 26. Bc2 {[%clk
0:01:15.7]} 26... a5 {[%clk 0:01:33.5]} 27. Rd1 {[%clk 0:01:13.1]} 27... Qc5
{[%clk 0:01:29.8]} 28. Rfd3 {[%clk 0:01:12]} 28... b4 {[%clk 0:01:26.9]} 29.
axb4 {[%clk 0:01:09.3]} 29... axb4 {[%clk 0:01:26.7]} 30. cxb4 {[%clk
0:01:09.7]} 30... Qxb4 {[%clk 0:01:25.3]} 31. Rb3 {[%clk 0:01:07]} 31... Qf8
{[%clk 0:01:23]} 32. Rbd3 {[%clk 0:01:04.4]} 32... Qc5 {[%clk 0:01:20.9]} 33.
Rd7 {[%clk 0:01:03]} 33... Qb5 {[%clk 0:01:14.6]} 34. b3 {[%clk 0:01:00.3]}
34... Rb7 {[%clk 0:01:12]} 35. Rd8 {[%clk 0:00:48.5]} 35... Ra7 {[%clk
0:01:05.2]} 36. R8d5 {[%clk 0:00:22.8]} 36... Qa6 {[%clk 0:01:04.4]} 37. Kc1
{[%clk 0:00:20.3]} 37... Qa2 {[%clk 0:00:54.9]} 38. Rc5 {[%clk 0:00:15.1]} 38...
Qa3+ {[%clk 0:00:51.5]} 39. Kd2 {[%clk 0:00:13.8]} 39... Qxc5 {[%clk 0:00:51.6]}
0-1